Cogmind - Beta 14 @@@ ROGUE MODE // 2024.11.30 @ 15:49:03 Player: Proroxy Result: Destroyed by S-27 Virus with Autogun Performance ------------- Evolutions (3) 1500 Regions Visited (6) 1200 Robots Destroyed (62) 310 Value Destroyed (1219) 1219 Prototype IDs (6) 120 Alien Tech Used (0) 0 Bonus (13) 13 TOTAL SCORE: 4362 Bonus ------- High Alert Combat Kills 13 Cogmind --------- Core Integrity 0/700 Matter 300/300 Energy 5/100 System Corruption 0% Temperature Cool (9) Movement Core (50) Location -7/Lower Caves Parts ------- > --- POWER (2) -------- (None) > --- PROPULSION (5) --- (None) > --- UTILITY (3) ------ Weight Redist. System > --- WEAPON (3) ------- (None) > --- INVENTORY (5) ---- Surge Thruster Improved Heat Sink Weight Redist. System Beam Rifle Peak State ------------ > --- POWER ------------ Improved Deuterium Engine > --- PROPULSION ------- Flight Unit Surge Thruster > --- UTILITY ---------- Weight Redist. System Phase Shifter Weapon Shielding > --- WEAPON ----------- Heavy Particle Gun Heavy Flail Powered Hammer > --- INVENTORY -------- Carbon-fiber Leg Thermal Generator Weight Redist. System Beam Rifle [Rating: 28] Favorites ----------- Power Light Ion Engine Engine Light Ion Engine Power Core Light Nuclear Core Propulsion Flight Unit Treads Advanced Treads Leg Aluminum Leg Hover Unit Combat Airjet Flight Unit Flight Unit Utility Small Battery Device Weight Redist. System Storage Small Battery Processor Visual Processing Unit Protection Weapon Shielding Weapon Shotgun Energy Gun Heavy Particle Gun Energy Cannon Light EM Pulse Cannon Ballistic Gun Shotgun Special Weapon Enhanced Flamer Impact Weapon Powered Hammer Slashing Weapon Mining Claw Build | -11 -10 -10 -9 -8 -7 -7 ------- Run | Yrd Mat Min Mat Mat Fac Low Slots Evolved 6 | . . . 2 2 2 . Power 1 | . . . . . 1 . Propulsion 3 | . . . 1 1 1 . Utility 1 | . . . 1 . . . Weapon 1 | . . . . 1 . . Parts Attached 78 | 9 7 9 21 24 4 4 Power 16 | 1 2 1 5 4 3 . Engine 15 | 1 2 1 5 3 3 . Core 1 | . . . . 1 . . Reactor . | . . . . . . . Propulsion 17 | 2 1 4 6 3 . 1 Treads 2 | . . . . 2 . . Leg 4 | 2 1 . . . . 1 Wheel . | . . . . . . . Hover 2 | . . 1 1 . . . Flight 9 | . . 3 5 1 . . Utility 20 | 4 . 1 3 9 1 2 Device 8 | 1 . . . 4 1 2 Storage 9 | 3 . . 3 3 . . Processor 1 | . . 1 . . . . Hackware . | . . . . . . . Protection 2 | . . . . 2 . . Artifact . | . . . . . . . Weapon 25 | 2 4 3 7 8 . 1 Energy Gun 8 | 1 . . 3 4 . . Energy Cannon 2 | . . . 1 1 . . Ballistic Gun 7 | 1 3 1 1 1 . . Ballistic Cannon . | . . . . . . . Launcher . | . . . . . . . Special Weapon 1 | . . . . . . 1 Impact Weapon 4 | . . . 2 2 . . Slashing Weapon 3 | . 1 2 . . . . Piercing Weapon . | . . . . . . . Special Melee Weapon . | . . . . . . . Unidentified Prototypes 2 | . . . 1 1 . . Parts Lost 31 | . . 1 5 14 1 10 Power 4 | . . . 1 2 . 1 Propulsion 9 | . . . 3 4 . 2 Utility 10 | . . 1 1 4 1 3 Weapon 8 | . . . . 4 . 4 Highest Loss Streak 5 | . . 1 4 5 1 4 To Critical Strikes . | . . . . . . . Average Slot Usage (%) 79 | . 100 86 86 69 64 49 Engine 8 | . 14 14 10 4 5 4 Treads 1 | . . . . 7 . . Leg 10 | . 28 9 . . . 1 Flight 11 | . . 16 23 21 15 5 Device 3 | . . . . 3 9 11 Storage 15 | . 28 15 18 9 2 . Processor 2 | . . 8 11 2 . . Protection 1 | . . . . . 7 4 Energy Gun 3 | . . . 7 4 7 4 Ballistic Gun 9 | . 24 9 3 2 . . Impact Weapon 5 | . . . 5 6 15 14 Slashing Weapon 1 | . 3 9 1 . . . Peak Build Rating 28 | 7 10 11 14 25 23 28 Average Rating 12 | 5 8 7 11 15 20 20 On Entrance 11 | . 7 7 11 12 19 23 Naked Turns . | . . . . . . . Heaviest Build 22 | 13 18 14 12 22 20 21 Greatest Support 42 | 20 20 20 12 42 13 21 Greatest Overweight (x) 2 | . . . 1 . 1 2 Average Overweight (x) . | . . . . . . . Largest Inventory Capacity 25 | 8 8 8 5 25 5 5 Average Capacity 6 | 7 8 6 5 5 5 5 Most Carried 8 | 6 8 8 5 5 5 5 Average Carried 4 | 3 7 5 3 3 3 4 Final Capacity 8 | 8 8 5 5 5 5 5 Final Carried 7 | 5 7 4 4 3 4 4 Class Distribution -------------------- 77% | Mutant 18% | Scavenger-Mutant 3% | Sprinter Dominant Class ---------------- Mutant | -10/Materials Mutant | -10/Mines Scavenger-Mutant | -9/Materials Mutant | -8/Materials Mutant | -7/Factory Mutant | -7/Lower Caves Resources | -11 -10 -10 -9 -8 -7 -7 ----------- Run | Yrd Mat Min Mat Mat Fac Low Matter Collected 1427 | 416 365 118 211 237 10 70 Remotely . | . . . . . . . Salvage Created 2416 | 129 541 105 342 927 129 243 Parts 113 | 8 37 7 26 28 4 3 Haulers Intercepted 3 | . . . 1 2 . . Recyclers Shooed 7 | . 3 1 1 2 . . Parts Field Recycled . | . . . . . . . Retrieved Matter . | . . . . . . . Parts Self-Destructed 4 | . . . . . . 4 Prevented 1 | . . . . . . 1 Kills | -11 -10 -10 -9 -8 -7 -7 ------- Run | Yrd Mat Min Mat Mat Fac Low Combat Hostiles Destroyed 32 | . 9 4 6 8 . 5 Melee 5 | . . 2 . 1 . 2 Guns 20 | . 9 2 6 3 . . Classes Destroyed 13 | 3 3 2 2 3 . . Worker 9 | 2 4 . . 2 1 . Builder 1 | . . . . 1 . . Tunneler 1 | 1 . . . . . . Hauler 3 | . . . 1 2 . . Recycler 11 | 1 3 1 1 3 2 . Watcher 6 | . 2 . 2 2 . . Swarmer 13 | . 5 2 4 . . 2 Grunt 10 | . 4 . . 3 . 3 Sentry 4 | . . . 2 2 . . Demolisher 1 | . . 1 . . . . Hunter 2 | . . . . 2 . . Heavy 1 | . . . . 1 . . Assembled 1 | . . 1 . . . . Best Kill Streak 8 | 2 7 2 8 4 2 2 Combat Bots Only 3 | . 3 2 3 3 . 2 Max Kills in Single Turn 2 | 1 2 1 1 1 1 1 Gunslinging . | . . . . . . . Exploded . | . . . . . . . Melee 1 | . . 1 . 1 . 1 Uniques/NPCs Destroyed . | . . . . . . . Combat | -11 -10 -10 -9 -8 -7 -7 -------- Run | Yrd Mat Min Mat Mat Fac Low Hostile Shots Fired 387 | . 61 22 67 99 5 133 Missed 142 | . 24 5 27 37 3 46 Damage Taken 3860 | . 395 208 459 1430 32 1336 Core 1335 | . 118 74 99 341 . 703 Absorbed by Shields . | . . . . . . . Redirected to Shielding 53 | . . . . 14 4 35 Core Remaining (%) 59 | 100 . 23 75 38 . . Volleys Fired 138 | 24 40 9 38 25 . 2 Largest 3 | 1 2 1 2 3 . 1 Hottest 129 | 40 46 20 60 129 . 80 Shots Fired 201 | 24 78 9 39 49 . 2 Gun 182 | 24 78 9 39 31 . 1 Cannon 18 | . . . . 18 . . Launcher . | . . . . . . . Special 1 | . . . . . . 1 Kinetic 107 | . 78 9 12 8 . . Thermal 41 | 24 . . 12 3 . 2 Explosive . | . . . . . . . Electromagnetic 53 | . . . 15 38 . . Robot Hit Streak 10 | 6 5 5 10 7 . . Robot Miss Streak 11 | 5 11 2 2 2 . 3 Penetration Max . | . . . . . . . Secondary Targets 2 | . 2 . . . . . Max Gunslinging Chain 1 | . 1 . . . . . Shots Hit Robots 180 | 15 50 10 32 58 3 12 Core Hits 68 | 5 29 6 12 14 1 1 Critical Kills 1 | . . . . 1 . . Critical Parts Destroyed 8 | . . . 1 4 . 3 Critical Strikes 11 | . . . 3 5 . 3 Burn 2 | . . . 2 . . . Smash 9 | . . . 1 5 . 3 Melee Attacks 60 | . . 5 5 23 3 24 Impact 53 | . . . 3 23 3 24 Slashing 7 | . . 5 2 . . . Piercing . | . . . . . . . Sneak Attacks 9 | . . . . 6 3 . Combat Hostiles . | . . . . . . . Follow-up Attacks 2 | . . . . . . 2 Damage Inflicted 4557 | 170 722 205 540 2024 238 658 Guns 1887 | 170 722 97 416 482 . . Cannons 272 | . . . . 272 . . Explosions 177 | . . . 38 139 . . Melee 2208 | . . 108 86 1131 238 645 Ramming 13 | . . . . . . 13 Kinetic 1036 | . 722 97 107 110 . . Thermal 543 | 170 . . 199 174 . . Explosive . | . . . . . . . Electromagnetic 757 | . . . 148 609 . . Impact 2100 | . . . 86 1131 238 645 Slashing 108 | . . 108 . . . . Piercing . | . . . . . . . Highest Corruption . | . . . . . . . Average Corruption . | . . . . . . . Corruption Purged . | . . . . . . . Corruption Blocked . | . . . . . . . Overload Shots . | . . . . . . . Overflow Damage 973 | . . . 33 591 107 242 Projectiles . | . . . . . . . Explosions 12 | . . . . 12 . . Melee 961 | . . . 33 579 107 242 Knockbacks 14 | . . . 1 5 2 6 Impact 13 | . . . 1 4 2 6 Kinetic . | . . . . . . . Secondary 1 | . . . . 1 . . Self-Inflicted Damage 61 | . . . . 55 . 6 Shots 1 | . . . . 1 . . Rammed 1 | . . . . . . 1 Targets Rammed 1 | . . . . . . 1 Kicked . | . . . . . . . Crushed . | . . . . . . . Highest Temperature 237 | . 21 . 237 216 . 12 Average Temperature 88 | . 6 . 127 92 . 6 Received Heat Transfer 858 | . 156 . 117 261 18 306 Siege Activations . | . . . . . . . Robots Corrupted 18 | . . . 1 11 2 4 Combat Hostiles 8 | . . . . 4 . 4 Parts Fried 24 | . . . 2 19 . 3 Impact Corruptions 30 | . . . 1 16 3 10 Robots Melted . | . . . . . . . Combat Hostiles . | . . . . . . . Parts Melted 8 | . . . 8 . . . Heat Transferred 1279 | 400 . . 655 224 . . Parts Sabotaged . | . . . . . . . Parts Stolen . | . . . . . . . Parts Stripped . | . . . . . . . Power Chain Reactions 3 | . . . 1 2 . . Alert | -11 -10 -10 -9 -8 -7 -7 ------- Run | Yrd Mat Min Mat Mat Fac Low Peak Influence 606 | 20 213 156 392 606 362 . Initial 275 | . 13 66 60 165 275 . Average 186 | 8 112 123 201 289 329 . Maximum Alert Level 2 | . 1 . 1 2 1 . Low Security (%) 58 | 100 99 100 44 15 . . Level 1 38 | . . . 55 74 100 . Level 2 2 | . . . . 10 . . Level 3 . | . . . . . . . Level 4 . | . . . . . . . Level 5 . | . . . . . . . High Security . | . . . . . . . Max Security . | . . . . . . . Squads Dispatched 7 | . 1 . 1 4 1 . Investigation 3 | . . . 1 1 1 . Extermination . | . . . . . . . Reinforcement 4 | . 1 . . 3 . . Assault . | . . . . . . . Garrison . | . . . . . . . Intercept . | . . . . . . . Searches Triggered . | . . . . . . . Construction Impeded . | . . . . . . . Haulers Reinforced . | . . . . . . . Active Scanning Responses . | . . . . . . . Cargo Convoy Interrupts . | . . . . . . . Stealth | -11 -10 -10 -9 -8 -7 -7 --------- Run | Yrd Mat Min Mat Mat Fac Low Distress Signals 7 | . 1 . 4 2 . . Communications Jammed . | . . . . . . . Distress Signals . | . . . . . . . Times Spotted 103 | . 15 12 21 36 3 16 Peak Tracking Total 18 | . 3 18 8 10 3 7 Tactical Retreats 18 | . 1 2 3 8 2 2 Traps | -11 -10 -10 -9 -8 -7 -7 ------- Run | Yrd Mat Min Mat Mat Fac Low Traps Triggered . | . . . . . . . Indirectly . | . . . . . . . Trap Hack Attempts . | . . . . . . . Triggered . | . . . . . . . Disarmed . | . . . . . . . Reprogrammed . | . . . . . . . Reused . | . . . . . . . Traps Extracted . | . . . . . . . Installed . | . . . . . . . Triggered 2 | . . . . 1 . 1 Machines | -11 -10 -10 -9 -8 -7 -7 ---------- Run | Yrd Mat Min Mat Mat Fac Low Machines Disabled 1 | . . . 1 . . . Max in Single Turn 1 | . . . 1 . . . Machines Repaired . | . . . . . . . Machines Dismantled . | . . . . . . . Machines Sabotaged . | . . . . . . . Overloaded Fab Kills . | . . . . . . . Hacking | -11 -10 -10 -9 -8 -7 -7 --------- Run | Yrd Mat Min Mat Mat Fac Low Machines Accessed 18 | . 6 . 5 5 2 . Terminals 14 | . 6 . 4 4 . . Fabricators 1 | . . . . . 1 . Repair Stations 1 | . . . . 1 . . Recycling Units . | . . . . . . . Scanalyzers 2 | . . . 1 . 1 . Garrison Access . | . . . . . . . Total Hacks 55 | . 23 . 18 9 5 . Successful 32 | . 13 . 11 5 3 . Failed 23 | . 10 . 7 4 2 . Catastrophic 1 | . 1 . . . . . Database Lockouts . | . . . . . . . Manual . | . . . . . . . Terminals 48 | . 23 . 17 8 . . Fabricators 3 | . . . . . 3 . Repair Stations 1 | . . . . 1 . . Recycling Units . | . . . . . . . Scanalyzers 3 | . . . 1 . 2 . Garrison Access . | . . . . . . . Terminal Hacks 29 | . 13 . 11 5 . . Record 9 | . 4 . 4 1 . . Robot Analysis 1 | . 1 . . . . . Prototype ID Bank 2 | . . . 2 . . . Emergency Access Points 3 | . . . 3 . . . Alert Level 3 | . 2 . 1 . . . Unreport Threat 1 | . 1 . . . . . Locate Traps 3 | . 1 . 1 1 . . Dispatch Records 1 | . 1 . . . . . Investigation Status 1 | . 1 . . . . . Recall Investigation 1 | . . . . 1 . . Hauler Manifests 1 | . 1 . . . . . Zone Layout 3 | . 1 . . 2 . . Fabricator Hacks 1 | . . . . . 1 . Load Schematic 1 | . . . . . 1 . Repair Station Hacks . | . . . . . . . Recycling Unit Hacks . | . . . . . . . Scanalyzer 2 | . . . . . 2 . Insert Component 1 | . . . . . 1 . Analyze 1 | . . . . . 1 . Garrison Access Hacks . | . . . . . . . Unauthorized Hacks . | . . . . . . . Terminals . | . . . . . . . Fabricators . | . . . . . . . Repair Stations . | . . . . . . . Recycling Units . | . . . . . . . Scanalyzers . | . . . . . . . Garrison Access . | . . . . . . . Data Cores Recovered . | . . . . . . . Used . | . . . . . . . Hacking Detections 16 | . 5 . 4 5 2 . Full Trace Events 3 | . . . 1 1 1 . Feedback Events . | . . . . . . . Feedback Blocked . | . . . . . . . Robot Schematics Acquired . | . . . . . . . Robots Built . | . . . . . . . Authchips . | . . . . . . . Time . | . . . . . . . Total Robot Build Rating . | . . . . . . . Part Schematics Acquired 1 | . . . . . 1 . Parts Built . | . . . . . . . Authchips . | . . . . . . . Time . | . . . . . . . Total Part Build Rating . | . . . . . . . Parts Repaired . | . . . . . . . Time . | . . . . . . . Parts Recycled . | . . . . . . . Recycled Matter . | . . . . . . . Retrieved Matter . | . . . . . . . Retrieved Components . | . . . . . . . Parts Scanalyzed 1 | . . . . . 1 . Part Schematics Acquired 1 | . . . . . 1 . Parts Damaged . | . . . . . . . Bothacking | -11 -10 -10 -9 -8 -7 -7 ------------ Run | Yrd Mat Min Mat Mat Fac Low Used RIF Installer . | . . . . . . . Robots Hacked . | . . . . . . . Non-combat . | . . . . . . . Combat . | . . . . . . . Robot Hacks Applied . | . . . . . . . Relay Couplers Released . | . . . . . . . Fabnet Peak Effective % . | . . . . . . . Robots Rewired . | . . . . . . . Allies Hacked . | . . . . . . . Hacks Repelled . | . . . . . . . Allies | -11 -10 -10 -9 -8 -7 -7 -------- Run | Yrd Mat Min Mat Mat Fac Low Total Allies . | . . . . . . . Largest Group . | . . . . . . . Highest-Rated Group . | . . . . . . . Highest-Rated Ally . | . . . . . . . Total Orders . | . . . . . . . Ally Attacks . | . . . . . . . Total Damage . | . . . . . . . Kills . | . . . . . . . Allies Corrupted . | . . . . . . . Allies Melted . | . . . . . . . Intel | -11 -10 -10 -9 -8 -7 -7 ------- Run | Yrd Mat Min Mat Mat Fac Low Robot Analysis Total 1 | . 1 . . . . . Derelict Logs Recovered . | . . . . . . . Drone Launches . | . . . . . . . Drone Recoveries . | . . . . . . . Exploration | -11 -10 -10 -9 -8 -7 -7 ------------- Run | Yrd Mat Min Mat Mat Fac Low Turns Passed 2446 | 184 756 99 317 591 205 294 Spaces Moved 2095 | 98 492 72 417 614 176 226 Core 83 | 6 . . . . . 77 Treads 127 | . . . . 127 . . Legs 632 | 92 492 13 . . . 35 Wheels . | . . . . . . . Hover 54 | . . 9 45 . . . Flight 1199 | . . 50 372 487 176 114 Fastest Speed 32 | 50 120 37 34 32 34 50 Average Speed 76 | 115 120 57 39 64 45 98 Slowest Speed 152 | 120 120 120 120 152 94 120 Overloaded Moves . | . . . . . . . Propulsion Burnouts . | . . . . . . . Robots Hopped . | . . . . . . . Cave-ins Triggered . | . . . . . . . Exploration Rate (%) 34 | 6 67 20 51 55 7 37 Regions Visited 6 Branch Regions 2 Pre-discovered Areas . | . . . . . . . Known Exits Taken . | . . . . . . . Unknown Exits Taken 6 | 1 1 1 1 1 1 . Scrap Searched 2 | . . 1 . . . 1 Spaces Dug . | . . . . . . . Terrain Destroyed 15 | . . . 3 12 . . Melee . | . . . . . . . Projectile . | . . . . . . . AOE 15 | . . . 3 12 . . Terrain Rammed . | . . . . . . . Walls Destroyed . | . . . . . . . Machines Disabled . | . . . . . . . Actions | -11 -10 -10 -9 -8 -7 -7 --------- Run | Yrd Mat Min Mat Mat Fac Low Total 2636 | 143 583 111 518 723 296 262 Wait 162 | 1 15 6 13 14 108 5 Move 2089 | 97 491 71 416 613 175 226 Hop . | . . . . . . . Pick Up 70 | 12 16 3 16 17 3 3 Fast Attach . | . . . . . . . Attach 43 | 7 . 3 9 18 3 3 Detach 8 | . . 2 1 3 2 . Swap 35 | 2 7 6 12 6 1 1 Drop 33 | . 14 6 8 4 1 . Fire 138 | 24 40 9 38 25 . 2 Melee 57 | . . 5 5 23 3 21 Ram 1 | . . . . . . 1 Kick . | . . . . . . . Crush . | . . . . . . . Escape Stasis . | . . . . . . . Rewire . | . . . . . . . Trap . | . . . . . . . Miscellaneous . | . . . . . . . Route ------- -11/Scrapyard -10/Materials (discovered 3 exits: *Mat x2 / [*Min]) -10/Mines -9/Materials -8/Materials -7/Factory -7/Lower Caves History --------- Turn | Location | Event 23 | -11/Scrapyard | Discovered new exit (range 13) 185 | -11/Scrapyard | Entered Materials 318 | -10/Materials | Build established: Mutant 404 | -10/Materials | Discovered new exit (range 15) 489 | -10/Materials | Discovered new exit (range 16) 932 | -10/Materials | Discovered new exit (range 9) 941 | -10/Materials | Entered Mines 953 | -10/Mines | Core integrity fell below 50% 991 | -10/Mines | Assembled infested the area 1027 | -10/Mines | Discovered new exit (range 16) 1040 | -10/Mines | Entered Materials 1040 | -9/Materials | Evolved 2 slots: Propulsion x1, Utility x1 1122 | -9/Materials | Lost 4 parts (1p2n1u) 1354 | -9/Materials | Discovered new exit (range 9) 1357 | -9/Materials | Entered another Materials area 1357 | -8/Materials | Evolved 2 slots: Propulsion x1, Weapon x1 1550 | -8/Materials | Lost 5 parts (1n2u2w) 1644 | -8/Materials | Lost 4 parts (1n1u2w) 1776 | -8/Materials | Core integrity fell below 50% 1946 | -8/Materials | Discovered new exit (range 7) 1948 | -8/Materials | Entered Factory 1948 | -7/Factory | Evolved 2 slots: Power x1, Propulsion x1 2145 | -7/Factory | Discovered new exit (range 5) 2153 | -7/Factory | Entered Lower Caves 2375 | -7/Lower Caves | Lost 4 parts (1p1n1u1w) 2435 | -7/Lower Caves | Attracted the attention of an 0b10 checkpoint 2438 | -7/Lower Caves | Core integrity fell below 50% 2445 | -7/Lower Caves | Core integrity fell below 20% 2447 | -7/Lower Caves | Destroyed by S-27 Virus with Autogun Last Messages --------------- Destroyed Particle Gun. Destroyed Aluminum Leg. G-47 Trooper system corrupted by crushing effect. Aluminum Leg fried. Imp. Heat Sink fried. G-47 Trooper destroyed. Acquired 10 matter. Searching scrap... Found Enh. Flamer. Found 67 Matter. Acquired Enh. Flamer. Acquired 10 matter. Y-54 Guardian: "INTERCEPTING UNREGISTERED DERELICT." Thermal Generator destroyed. Enh. Flamer destroyed. Powered Hammer destroyed. Hvy. Flail destroyed. Slammed into S-27 Virus. Map ----- +----------------------------------------------------+ | ????# """" ####### #??## ##?? ? | | ????# """" ### ## #??# ### | | ????# ## # #??# | | ????# #?# #??## % | | ????##########?# ##??## ### %### ## #? | | ???????????????# #???###?## #???##???????? | | ???????????????## #????????## #????????????? | | ????????????????# ##?????????# #????????????? | | ???????????????## #??###?????# #????????????? | | ??????????????## #### ##???## #????????????? | | ?????????????## ## #???# ##???????????? | | ?????????????# ##??# ##?######## | | ????????????#^ ### #### ### | | ???????????# #??## ## | | ???????????# ????### ###????? | | ??????????# ???????## ""##???? | | ??????????# ????????## ""##??? | | ??????????# ??????????# % #??? | | ??????????# ??????????## ## "#??? | | ??????????# ????????????### ### % "##??# | | ??????????# ??????????????# #?## ^ ###??# | | ??????????#???????????????# #??### #### #### | | ??????????????????????????# #????# #??## | | ?????????????????????????##%s##???# #???## % | | ????????????????????????## ss ##??# #????## ##### | | ????????????????????????#@ #??# ??????# #???? | | ???????????????????????# s#??# ????? #???? | | ??????????????????????# ???? ???? | | ??????????????????????# $ #? ## ##??? | | ?????????????????????? g ### ??#####???? | | ?????????????????????## #?#???????????? | | ??????????????????????# # s Y #????????????? | | ??????????????????????### # #????????????? | | ????????????????????????# # ???????????? | | ????????????????????????# # ???????????? | | ????????????????????????# # ## ???????????? | | ????????????????????????# ## ####?????????????? | | ????????????????????????# ??###????????????????? | | ????????????????????????? ?????????????????????? | | ????????????????????????? ?????????????????????? | | ????????????????????????? ?????????????????????? | | ?????????????????????????????????????????????????? | | ?????????????????????????????????????????????????? | | ?????????????????????????????????????????????????? | | ?????????????????????????????????????????????????? | | ?????????????????????????????????????????????????? | | ?????????????????????????????????????????????????? | | ?????????????????????????????????????????????????? | | ?????????????????????????????????????????????????? | | ?????????????????????????????????????????????????? | +----------------------------------------------------+ Best States ------------- Heat Dissipation 34 Energy Generation 16 Energy Capacity 480 Matter Stores 400 Matter Capacity 400 Sight Range 18 Terrain Scan Density 10 Additional Mass Support 6 Armor Coverage 150 Weapon Shielding 33 Phase Shifting 5 Evasion (%) 71 Recoil Reduction 2 Item Schematics ----------------- Imp. Ion Engine | -7/Factory | Scanalyzed Robot Schematics ------------------ None Fabricated ------------ Nothing Alien Tech Used ----------------- None Achievements -------------- Hey, That's Mine! Challenges ------------ None Game ------ Seed TransportTrackerRigger Manual? 0 Play Time 01:20:18 Cumulative 26.2 hours Start 2024.10.28 @ 21:53:44 End 2024.11.30 @ 15:49:03 Sessions 3 Manual Loads 0 Difficulty Rogue Special Mode None Game No. 23 Rogue 23 Adventurer 0 Explorer 0 Win Type - Total 0 Types 0/0/0/0/0/0/0/0/0 Lore% 8 Gallery% 23 Achievement% 15 Wizard Run 0 Options --------- Layout 1 ASCII 0 Keyboard 1 Movement Numpad Keybinds 0 Fullscreen 1 Font 24/Smallcaps Map View 50x35 Zoom Use 0% Tactical HUD 0 Map Filters NONE Filters NONE Steam 1 RUN: 74f37b47-039a-4a79-805a-15118ee15768